fUST/lending_fUST_20250611
["ID","MTS","AMOUNT","RATE_DAILY","PERIOD"]
[365292490,1749583832944,-440.0,0.00021351,4]
[365292491,1749583832954,-440.0,0.00021351,4]
[365292492,1749583832964,-440.0,0.00021351,4]
[365292493,1749583832973,-440.09483473,0.00021351,4]
[365292494,1749583832983,-500.0,0.00021351,4]
[365292495,1749583832992,-245.52723089,0.00021351,4]
[365292496,1749583833001,-460.0,0.00021351,4]
[365292497,1749583833011,-460.0,0.00021351,4]
[365292498,1749583833020,-534.16,0.00021351,4]
[365292499,1749583833030,-440.0,0.00021351,4]
[365292501,1749583833041,-440.0,0.00021351,4]
[365292502,1749583833051,-390.0,0.00021351,4]
[365292503,1749583833061,-440.0,0.00021351,4]
[365292504,1749583833072,-440.0,0.00021351,4]
[365292506,1749583833082,-440.0,0.00021351,4]
[365292507,1749583833094,-460.0,0.00021351,4]
[365292508,1749583833104,-460.0,0.00021351,4]
[365292509,1749583833114,-460.0,0.00021351,4]
[365292510,1749583833125,-460.0,0.00021351,4]
[365292511,1749583833134,-460.0,0.00021351,4]
[365292512,1749583833145,-460.0,0.00021351,4]
[365292513,1749583833155,-460.0,0.00021351,4]
[365292514,1749583833166,-460.0,0.00021351,4]
[365292515,1749583833176,-460.0,0.00021351,4]
[365292516,1749583833185,-460.0,0.00021351,4]
[365292517,1749583833196,-460.0,0.00021351,4]
[365292518,1749583833208,-460.0,0.00021351,4]
[365292519,1749583833218,-460.0,0.00021351,4]
[365292520,1749583833228,-460.0,0.00021351,4]
[365292521,1749583833238,-460.0,0.00021351,4]
[365292522,1749583833247,-460.0,0.00021351,4]
[365292523,1749583833256,-460.0,0.00021351,4]
[365292524,1749583833266,-460.0,0.00021351,4]
[365292525,1749583833277,-460.0,0.00021351,4]
[365292526,1749583833287,-460.0,0.00021351,4]
[365292527,1749583833298,-460.0,0.00021351,4]
[365292528,1749583833307,-460.0,0.00021351,4]
[365292529,1749583833318,-871.53,0.00021351,4]
[365292530,1749583833330,-380.0,0.00021351,4]
[365292531,1749583833341,-440.95080469,0.00021356,4]
[365292532,1749583833351,-460.0,0.00021369,4]
[365292533,1749583833361,-420.0,0.00021369,4]
[365292534,1749583833371,-536.58,0.00021369,4]
[365292535,1749583833381,-867.36,0.00021369,4]
[365292536,1749583833391,-586.17,0.00021369,4]
[365292537,1749583833400,-565.4,0.00021369,4]
[365292538,1749583833411,-460.0,0.00021369,4]
[365292539,1749583833420,-460.0,0.00021369,4]
[365292540,1749583833430,-564.71,0.00021369,4]
[365292541,1749583833440,-460.0,0.00021369,4]
[365292542,1749583833451,-460.0,0.00021369,4]
[365292543,1749583833461,-609.78,0.00021369,4]
[365292544,1749583833471,-757.88,0.00021369,4]
[365292545,1749583833480,-460.0,0.00021369,4]
[365292546,1749583833490,-460.0,0.00021369,4]
[365292547,1749583833499,-460.0,0.00021369,4]
[365292549,1749583833508,-460.0,0.00021369,4]
[365292550,1749583833518,-460.0,0.00021369,4]
[365292551,1749583833528,-460.0,0.00021369,4]
[365292552,1749583833538,-460.0,0.00021369,4]
[365292554,1749583833547,-460.0,0.00021369,4]
[365292555,1749583833558,-5868.27964735,0.00021448,2]
[365292556,1749583833567,-612.31881565,0.00021625,4]
[365292557,1749583833577,-460.0,0.00021625,4]
[365292559,1749583833586,-360.0,0.00021625,4]
[365292560,1749583833595,-460.0,0.00021625,4]
[365292561,1749583833720,-221.20467988,0.00021625,4]
[365292562,1749583833730,-420.0,0.00021625,4]
[365292563,1749583833741,-420.0,0.00021625,4]
[365292564,1749583833760,-420.0,0.00021625,4]
[365292565,1749583833774,-460.0,0.00021625,4]
[365292566,1749583833785,-420.0,0.00021625,4]
[365292567,1749583833797,-460.0,0.00021625,4]
[365292568,1749583833808,-460.0,0.00021625,4]
[365292569,1749583833818,-460.0,0.00021625,4]
[365292571,1749583833828,-460.0,0.00021625,4]
[365292572,1749583833839,-460.0,0.00021625,4]
[365292573,1749583833848,-420.0,0.00021625,4]
[365292574,1749583833858,-240.0,0.00021625,4]
[365292575,1749583833868,-460.0,0.00021625,4]
[365292576,1749583833878,-460.0,0.00021625,4]
[365292577,1749583833888,-390.0,0.00021625,4]
[365292578,1749583833899,-420.0,0.00021625,4]
[365292579,1749583833910,-460.0,0.00021625,4]
[365292580,1749583833921,-460.0,0.00021625,4]
[365292581,1749583833932,-460.0,0.00021625,4]
[365292582,1749583833945,-460.0,0.00021625,4]
[365292583,1749583833957,-460.0,0.00021625,4]
[365292584,1749583833969,-871.53,0.00021625,4]
[365292585,1749583833980,-411.31626889,0.00021626,4]
[365292586,1749583833990,-380.0,0.00021626,4]
[365292587,1749583834000,-440.0,0.00021626,4]
[365292588,1749583834010,-584.62,0.00021626,4]
[365292589,1749583834020,-310.0,0.00021626,4]
[365292590,1749583834030,-390.0,0.00021626,4]
[365292591,1749583834040,-460.0,0.00021626,4]
[365292592,1749583834051,-460.0,0.00021626,4]
[365292593,1749583834060,-460.0,0.00021626,4]
[365292595,1749583834071,-1208.74,0.00021626,4]
[365292596,1749583834081,-440.0,0.00021626,4]
[365292597,1749583834092,-460.0,0.00021626,4]
[365292598,1749583834101,-440.0,0.00021626,4]
[365292599,1749583834111,-440.0,0.00021626,4]
[365292600,1749583834122,-460.0,0.00021626,4]
[365292601,1749583834132,-272.2040379,0.00021626,4]
[365292602,1749583834143,-460.0,0.00021626,4]
[365292603,1749583834153,-500.0,0.00021626,4]
[365292604,1749583834163,-600.0,0.00021626,4]
[365292605,1749583834175,-460.0,0.00021626,4]
[365292606,1749583834185,-440.0,0.00021626,4]
[365292607,1749583834197,-460.0,0.00021626,4]
[365292609,1749583834208,-440.0,0.00021626,4]
[365292610,1749583834218,-500.0,0.00021626,4]
[365292611,1749583834229,-558.88568768,0.00021626,4]
[365292612,1749583834239,-440.0,0.00021626,4]
[365292613,1749583834248,-440.0,0.00021626,4]
[365292614,1749583834259,-316.01263517,0.00021626,4]
[365292615,1749583834269,-440.0,0.00021626,4]
[365292616,1749583834279,-440.0,0.00021626,4]
[365292617,1749583834289,-440.0,0.00021626,4]
[365292618,1749583834298,-460.0,0.00021626,4]
[365292619,1749583834308,-440.0,0.00021626,4]
[365292621,1749583834318,-440.0,0.00021626,4]
[365292622,1749583834327,-440.0,0.00021626,4]
[365292623,1749583834337,-460.0,0.00021626,4]
[365292624,1749583834346,-460.0,0.00021626,2]
[365292625,1749583834358,-460.0,0.00021626,4]
[365292626,1749583834368,-440.0,0.00021626,4]
[365292627,1749583834378,-440.0,0.00021626,4]
[365292628,1749583834389,-360.83897167,0.00021626,4]
[365292629,1749583834399,-560.86001447,0.00021626,4]
[365292630,1749583834408,-460.0,0.00021626,4]
[365292631,1749583834418,-430.0,0.00021626,4]
[365292632,1749583834428,-460.0,0.00021626,4]
[365292633,1749583834438,-304.03460454,0.00021626,4]
[365292634,1749583834449,-430.0,0.00021626,4]
[365292635,1749583834459,-460.0,0.00021626,4]
[365292636,1749583834468,-403.35052902,0.00021626,4]
[365292637,1749583834477,-460.0,0.00021626,4]
[365292638,1749583834487,-492.42747307,0.00021626,4]
[365292639,1749583834496,-460.0,0.00021626,4]
[365292640,1749583834506,-460.0,0.00021626,4]
[365292641,1749583834516,-506.17,0.00021626,4]
[365292642,1749583834526,-460.0,0.00021626,4]
[365292643,1749583834535,-460.0,0.00021626,4]
[365292644,1749583834545,-460.0,0.00021626,4]
[365292645,1749583834554,-460.0,0.00021626,4]
[365292646,1749583834563,-460.0,0.00021626,4]
[365292647,1749583834574,-460.0,0.00021626,4]
[365292648,1749583834583,-460.0,0.00021626,4]
[365292649,1749583834592,-460.0,0.00021626,4]
[365292650,1749583834602,-380.0,0.00021628,4]
[365292651,1749583834611,-460.0,0.00021628,4]
[365292652,1749583834620,-460.0,0.00021628,4]
[365292653,1749583834629,-440.0,0.00021628,4]
[365292654,1749583834639,-500.0,0.00021628,4]
[365292655,1749583834648,-180.00141876,0.00021628,4]
[365292656,1749583834657,-440.0,0.00021628,4]
[365292657,1749583834666,-440.0,0.00021628,4]
[365292658,1749583834675,-440.0,0.00021628,4]
[365292659,1749583834685,-430.0,0.00021628,4]
[365292660,1749583834694,-440.0,0.00021628,4]
[365292661,1749583834703,-550.0769539,0.00021628,4]
[365292662,1749583834712,-440.0,0.00021628,4]
[365292663,1749583834721,-528.33505023,0.00021628,4]
[365292664,1749583834731,-430.0,0.00021628,4]
[365292665,1749583834740,-440.0,0.00021628,4]
[365292666,1749583834749,-562.10826671,0.00021628,4]
[365292667,1749583834759,-440.0,0.00021628,4]
[365292668,1749583834769,-362.35609535,0.00021628,4]
[365292669,1749583834778,-440.0,0.00021628,4]
[365292670,1749583834788,-400.0,0.00021628,4]
[365292671,1749583834799,-430.0,0.00021628,4]
[365292672,1749583834809,-440.0,0.00021628,4]
[365292673,1749583834819,-440.0,0.00021628,4]
[365292674,1749583834828,-440.0,0.00021628,4]
[365292675,1749583834837,-430.0,0.00021628,4]
[365292676,1749583834847,-409.61511835,0.00021628,4]
[365292677,1749583834857,-460.0,0.00021628,4]
[365292678,1749583834866,-430.0,0.00021628,4]
[365292679,1749583834876,-440.0,0.00021628,4]
[365292680,1749583834886,-440.0,0.00021628,4]
[365292681,1749583834896,-440.0,0.00021628,4]
[365292682,1749583834906,-511.64951376,0.00021628,4]
[365292683,1749583834915,-440.20274534,0.00021628,4]
[365292684,1749583834925,-460.0,0.00021628,4]
[365292685,1749583834934,-460.0,0.00021628,4]
[365292686,1749583834944,-460.0,0.00021628,4]
[365292687,1749583834953,-460.0,0.00021628,4]
[365292688,1749583834963,-430.0,0.00021628,4]
[365292689,1749583834972,-460.0,0.00021628,4]
[365292690,1749583834982,-460.0,0.00021628,4]
[365292691,1749583834991,-460.0,0.00021628,4]
[365292692,1749583835001,-460.0,0.00021628,4]
[365292693,1749583835010,-460.0,0.00021628,4]
[365292694,1749583835019,-460.0,0.00021628,4]
[365292695,1749583835029,-420.0,0.00021643,4]
[365292696,1749583835038,-867.36,0.00021643,4]
[365292697,1749583835047,-586.17,0.00021643,4]
[365292698,1749583835056,-565.4,0.00021643,4]
[365292699,1749583835066,-420.0,0.00021643,4]
[365292700,1749583835076,-460.0,0.00021643,4]
[365292701,1749583835085,-564.71,0.00021643,4]
[365292702,1749583835095,-400.0,0.00021643,4]
[365292703,1749583835104,-400.0,0.00021643,4]
[365292704,1749583835113,-609.78,0.00021643,4]
[365292705,1749583835123,-757.88,0.00021643,4]
[365292706,1749583835132,-207.06,0.00021643,4]
[365292707,1749583835142,-400.0,0.00021643,4]
[365292708,1749583835151,-460.0,0.00021643,4]
[365292709,1749583835161,-400.0,0.00021643,4]
[365292710,1749583835170,-460.0,0.00021643,4]
[365292711,1749583835179,-460.0,0.00021643,4]
[365292712,1749583835188,-460.0,0.00021643,4]
[365292713,1749583835199,-400.0,0.00021643,4]
[365292714,1749583835208,-12635.84895939,0.00021652,2]
[365292715,1749583835217,-666.0,0.00021681,2]
[365292716,1749583835227,-644.7222547,0.00021684,2]
[365292717,1749583835236,-185.41738437,0.00021756,2]
[365292718,1749583835245,-500.0,0.00021767,2]
[365292719,1749583835254,-3959.78311378,0.00021878,2]
[365292720,1749583835263,-460.0,0.00021899,4]
[365292721,1749583835272,-460.0,0.00021899,4]
[365292722,1749583835281,-460.0,0.00021899,4]
[365292723,1749583835290,-420.0,0.00021899,4]
[365292724,1749583835300,-420.0,0.00021899,4]
[365292725,1749583835309,-460.0,0.00021899,4]
[365292726,1749583835318,-460.0,0.00021899,4]
[365292727,1749583835327,-460.0,0.00021899,4]
[365292728,1749583835336,-420.0,0.00021899,4]
[365292729,1749583835345,-460.0,0.00021899,4]
[365292730,1749583835354,-400.0,0.00021899,4]
[365292731,1749583835363,-400.0,0.00021899,4]
[365292732,1749583835373,-460.0,0.00021899,4]
[365292733,1749583835382,-460.0,0.00021899,4]
[365292734,1749583835391,-400.0,0.00021899,4]
[365292735,1749583835401,-871.53,0.00021899,4]
[365292736,1749583835410,-584.62,0.000219,4]
[365292737,1749583835419,-1208.74,0.000219,4]
[365292738,1749583835428,-440.0,0.000219,4]
[365292739,1749583835438,-460.0,0.000219,4]
[365292741,1749583835449,-440.0,0.000219,4]
[365292742,1749583835459,-440.0,0.000219,4]
[365292743,1749583835468,-460.0,0.000219,4]
[365292744,1749583835478,-172.71262516,0.000219,4]
[365292745,1749583835487,-440.0,0.000219,4]
[365292746,1749583835497,-460.0,0.000219,2]
[365292747,1749583835506,-440.0,0.000219,4]
[365292748,1749583835515,-420.0,0.000219,4]
[365292749,1749583835525,-460.0,0.000219,4]
[365292750,1749583835534,-460.0,0.000219,4]
[365292751,1749583835546,-420.0,0.000219,4]
[365292752,1749583835556,-460.0,0.000219,4]
[365292753,1749583835566,-559.24350556,0.000219,6]
[365292754,1749583835576,-400.0,0.000219,4]
[365292755,1749583835586,-420.0,0.000219,4]
[365292756,1749583835596,-460.0,0.000219,4]
[365292757,1749583835606,-420.0,0.000219,4]
[365292758,1749583835616,-460.0,0.000219,4]
[365292759,1749583835626,-363.39964934,0.000219,4]
[365292760,1749583835636,-460.0,0.000219,4]
[365292761,1749583835646,-420.0,0.000219,4]
[365292762,1749583835656,-420.0,0.000219,4]
[365292763,1749583835667,-460.0,0.00021902,4]
[365292764,1749583835678,-349.04521588,0.00021902,4]
[365292765,1749583835688,-420.0,0.00021902,4]
[365292766,1749583835699,-370.0,0.00021902,4]
[365292767,1749583835708,-400.0,0.00021902,4]
[365292768,1749583835718,-400.0,0.00021902,4]
[365292769,1749583835729,-400.0,0.00021902,4]
[365292770,1749583835739,-400.0,0.00021902,4]
[365292771,1749583835749,-238.77230431,0.00021902,4]
[365292772,1749583835758,-196.0858518,0.00021902,4]
[365292773,1749583835768,-383.83483562,0.00021902,4]
[365292774,1749583835778,-420.0,0.00021902,4]
[365292775,1749583835788,-867.36,0.00021917,4]
[365292776,1749583835800,-586.17,0.00021917,4]
[365292777,1749583835811,-565.4,0.00021917,4]
[365292778,1749583835821,-184.83139515,0.00021917,4]
[365292779,1749583835831,-564.71,0.00021917,4]
[365292780,1749583835843,-609.78,0.00021917,4]
[365292781,1749583835854,-757.88,0.00021917,4]
[365292782,1749583835865,-460.0,0.00021917,4]
[365292783,1749583835875,-380.0,0.00021917,4]
[365292784,1749583835885,-460.0,0.00021917,4]
[365292785,1749583835895,-380.0,0.00021917,4]
[365292786,1749583835906,-162.97705615,0.00021918,2]
[365292787,1749583835916,-500.0,0.00021973,2]
[365292788,1749583835926,-500.0,0.00021973,2]
[365292789,1749583835936,-500.0,0.00021999,2]
[365292790,1749583835947,-3129.92728699,0.00021999,2]
[365292791,1749583835960,-487.04255223,0.00021999,2]
[365292792,1749583835970,-3129.92728699,0.00021999,2]
[365292793,1749583835979,-3129.92728699,0.00021999,2]
[365292794,1749583835990,-500.0,0.00021999,2]
[365292795,1749583836001,-3129.92728699,0.00021999,2]
[365292796,1749583836013,-3129.92728699,0.00021999,2]
[365292797,1749583836023,-500.0,0.00021999,2]
[365292798,1749583836033,-3129.92728699,0.00021999,2]
[365292799,1749583836044,-3129.92728699,0.00021999,2]
[365292800,1749583836053,-3129.92728699,0.00021999,2]
[365292801,1749583836063,-3129.92728699,0.00021999,2]
[365292802,1749583836073,-500.0,0.00021999,2]
[365292803,1749583836083,-3129.92728699,0.00021999,2]
[365292804,1749583836093,-500.0,0.00021999,2]
[365292805,1749583836103,-80960.62933716,0.00022,2]
[365292806,1749583836114,-386.53261844,0.00022,2]
[365292807,1749583836124,-559.24350556,0.00022003,6]
[365292808,1749583836134,-500.0,0.00022022,2]
[365292809,1749583836145,-500.0,0.00022022,2]
[365292810,1749583836155,-500.0,0.00022022,2]
[365292811,1749583836165,-427.00833411,0.00022029,2]
[365292812,1749583836176,-500.0,0.00022029,2]
[365292813,1749583836186,-500.0,0.00022029,2]
[365292814,1749583836197,-490.0,0.00022029,2]
[365292815,1749583836208,-559.24350556,0.00022107,6]
[365292816,1749583836218,-215.98699812,0.00022173,4]
[365292817,1749583836228,-460.0,0.00022173,4]
[365292818,1749583836238,-460.0,0.00022173,4]
[365292819,1749583836249,-460.0,0.00022173,4]
[365292820,1749583836259,-460.0,0.00022173,4]
[365292821,1749583836269,-460.0,0.00022173,4]
[365292822,1749583836279,-460.0,0.00022173,4]
[365292823,1749583836290,-400.0,0.00022173,4]
[365292824,1749583836300,-460.0,0.00022173,4]
[365292825,1749583836310,-871.53,0.00022173,4]
[365292826,1749583836320,-584.62,0.00022174,4]
[365292827,1749583836330,-1208.74,0.00022174,4]
[365292828,1749583836340,-460.0,0.00022174,4]
[365292829,1749583836350,-460.0,0.00022174,4]
[365292830,1749583836359,-440.0,0.00022174,2]
[365292831,1749583836369,-460.0,0.00022174,4]
[365292832,1749583836380,-400.0,0.00022174,4]
[365292833,1749583836390,-420.0,0.00022174,4]
[365292834,1749583836401,-240.0,0.00022174,4]
[365292835,1749583836410,-400.0,0.00022174,4]
[365292836,1749583836421,-400.0,0.00022174,4]
[365292837,1749583836431,-460.0,0.00022176,4]
[365292838,1749583836441,-867.36,0.00022191,4]
[365292839,1749583836453,-586.17,0.00022191,4]
[365292840,1749583836462,-565.4,0.00022191,4]
[365292841,1749583836472,-564.71,0.00022191,4]
[365292842,1749583836482,-609.78,0.00022191,4]
[365292843,1749583836492,-757.88,0.00022191,4]
[365292844,1749583836502,-380.0,0.00022191,4]
[365292845,1749583836513,-380.0,0.00022191,4]
[365292846,1749583836524,-547.84,0.000222,7]
[365292847,1749583836535,-1109.15,0.000222,7]
[365292848,1749583836544,-559.24350556,0.0002221,6]
[365292849,1749583836554,-420.0,0.0002224,2]
[365292850,1749583836564,-185.41738437,0.00022261,2]
[365292851,1749583836575,-559.24350556,0.00022314,7]
[365292852,1749583836585,-787.0,0.00022345,2]
[365292853,1749583836595,-559.24350556,0.00022417,7]
[365292854,1749583836605,-460.0,0.00022447,4]
[365292855,1749583836615,-460.0,0.00022447,4]
[365292856,1749583836625,-460.0,0.00022447,4]
[365292857,1749583836635,-460.0,0.00022447,4]
[365292858,1749583836645,-460.0,0.00022447,4]
[365292859,1749583836656,-460.0,0.00022447,4]
[365292860,1749583836666,-460.0,0.00022447,4]
[365292861,1749583836677,-871.53,0.00022447,4]
[365292862,1749583836788,-584.62,0.00022448,4]
[365292863,1749583836801,-1208.74,0.00022448,4]
[365292864,1749583836812,-460.0,0.00022448,4]
[365292865,1749583836822,-460.0,0.00022448,4]
[365292866,1749583836832,-420.0,0.00022448,4]
[365292867,1749583836843,-460.0,0.0002245,4]
[365292868,1749583836852,-867.36,0.00022465,4]
[365292869,1749583836863,-586.17,0.00022465,4]
[365292870,1749583836874,-565.4,0.00022465,4]
[365292871,1749583836884,-564.71,0.00022465,4]
[365292872,1749583836896,-609.78,0.00022465,4]
[365292873,1749583836907,-757.88,0.00022465,4]
[365292874,1749583836918,-559.24350556,0.00022521,7]
[365292875,1749583836929,-500.0,0.0002257,2]
[365292876,1749583836939,-1000.0,0.0002257,2]
[365292877,1749583836949,-500.0,0.0002257,2]
[365292878,1749583836959,-559.24350556,0.00022624,7]
[365292879,1749583836970,-460.0,0.00022721,4]
[365292880,1749583836980,-383.65,0.00022721,4]
[365292881,1749583836991,-460.0,0.00022721,4]
[365292882,1749583837001,-460.0,0.00022721,4]
[365292883,1749583837011,-460.0,0.00022721,4]
[365292884,1749583837022,-460.0,0.00022721,4]
[365292885,1749583837033,-460.0,0.00022721,4]
[365292886,1749583837043,-871.53,0.00022721,4]
[365292887,1749583837056,-584.62,0.00022722,4]
[365292888,1749583837066,-1208.74,0.00022722,4]
[365292889,1749583837076,-460.0,0.00022722,4]
[365292890,1749583837086,-460.0,0.00022722,4]
[365292891,1749583837097,-460.0,0.00022724,4]
[365292892,1749583837107,-559.24350556,0.00022728,7]
[365292893,1749583837117,-867.36,0.00022739,4]
[365292894,1749583837127,-586.17,0.00022739,4]
[365292895,1749583837136,-565.4,0.00022739,4]
[365292896,1749583837147,-564.71,0.00022739,4]
[365292897,1749583837157,-609.78,0.00022739,4]
[365292898,1749583837168,-757.88,0.00022739,4]
[365292899,1749583837178,-185.41738437,0.00022766,2]
[365292900,1749583837187,-559.24350556,0.00022831,8]
[365292901,1749583837199,-834.9046531,0.00022834,2]
[365292903,1749583837208,-160.0,0.00022834,2]
[365292904,1749583837218,-160.0,0.00022834,2]
[365292905,1749583837227,-11858.11761888,0.00022834,2]
[365292906,1749583837237,-160.0,0.00022834,2]
[365292907,1749583837247,-842.5625,0.00022834,2]
[365292908,1749583837256,-424.12530924,0.00022834,2]
[365292909,1749583837266,-213.1263252,0.00022834,2]
[365292911,1749583837275,-160.0,0.00022834,2]
[365292912,1749583837284,-168.0,0.00022908,2]
[365292913,1749583837293,-559.24350556,0.00022934,8]
[365292914,1749583837303,-13365.8350906,0.0002295,7]
[365292915,1749583837312,-13365.8350906,0.0002295,7]
[365292916,1749583837322,-11858.11761888,0.0002295,7]
[365292918,1749583837330,-842.5625,0.0002295,7]
[365292920,1749583837339,-460.0,0.00022995,4]
[365292922,1749583837349,-460.0,0.00022995,4]
[365292924,1749583837358,-460.0,0.00022995,4]
[365292927,1749583837368,-460.0,0.00022995,4]
[365292929,1749583837377,-460.0,0.00022995,4]
[365292931,1749583837386,-460.0,0.00022995,4]
[365292933,1749583837397,-871.53,0.00022995,4]
[365292935,1749583837407,-584.62,0.00022996,4]
[365292937,1749583837416,-1208.74,0.00022996,4]
[365292939,1749583837425,-460.0,0.00022996,4]
[365292941,1749583837435,-460.0,0.00022996,4]
[365292943,1749583837444,-316.72209069,0.00022998,4]
[365292945,1749583837455,-574.773305,0.00023,2]
[365292947,1749583837464,-16554.57218705,0.00023,20]
[365292949,1749583837474,-3026.35047221,0.00023,2]
[365292951,1749583837484,-867.36,0.00023013,4]
[365292952,1749583837493,-586.17,0.00023013,4]
[365292953,1749583837503,-565.4,0.00023013,4]
[365292955,1749583837512,-564.71,0.00023013,4]
[365292957,1749583837521,-609.78,0.00023013,4]
[365292959,1749583837531,-757.88,0.00023013,4]
[365292961,1749583837540,-559.24350556,0.00023038,8]
[365292963,1749583837549,-168.0,0.00023068,2]
[365292965,1749583837558,-11195.98279941,0.00023105,2]
[365292975,1749583837645,-534.09941156,0.00021999,2]
[365293008,1749583837963,-460.0,0.00021095,4]
[365293010,1749583837973,-460.0,0.00021095,4]
[365293012,1749583837983,-460.0,0.00021351,4]
[365293014,1749583837993,-333.22,0.00021369,4]
[365293016,1749583838003,-460.0,0.00021369,4]
[365293018,1749583838012,-460.0,0.00021369,4]
[365293020,1749583838022,-460.0,0.00021625,4]
[365293022,1749583838031,-460.0,0.00021643,4]
[365293023,1749583838041,-460.0,0.00021899,4]
[365293025,1749583838050,-460.0,0.00021917,4]
[365293027,1749583838060,-2595.82787543,0.00021999,2]
[365293029,1749583838070,-3129.92728699,0.00021999,2]
[365293030,1749583838079,-3129.92728699,0.00021999,2]
[365293031,1749583838088,-3129.92728699,0.00021999,2]
[365293033,1749583838097,-460.0,0.00022173,4]
[365293034,1749583838107,-460.0,0.00022191,4]
[365293035,1749583838116,-460.0,0.00022447,4]
[365293036,1749583838126,-460.0,0.00022465,4]
[365293038,1749583838135,-460.0,0.00022721,4]
[365293039,1749583838144,-460.0,0.00022995,4]
[365293040,1749583838154,-2509.92825735,0.00023105,2]
[365293041,1749583838163,-500.0,0.00023118,2]
[365293042,1749583838173,-559.24350556,0.00023141,8]
[365293043,1749583838182,-168.0,0.00023191,2]
[365293044,1749583838191,-1688.0,0.00023194,2]
[365293045,1749583838201,-5000.0,0.00023194,2]
[365293046,1749583838211,-151.0,0.00023194,2]
[365293047,1749583838221,-2500.0,0.00023194,2]
[365293048,1749583838230,-2500.0,0.00023194,2]
[365293049,1749583838240,-2500.0,0.00023194,2]
[365293050,1749583838249,-2500.0,0.00023194,2]
[365293051,1749583838258,-801.44693128,0.00023194,2]
[365293052,1749583838267,-207.4,0.00023194,2]
[365293053,1749583838277,-94174.72,0.000232,7]
[365293054,1749583838287,-158.7504224,0.00023205,2]
[365293055,1749583838296,-500.0,0.0002323,2]
[365293056,1749583838305,-559.24350556,0.00023245,8]
[365293057,1749583838315,-1750.456,0.00023249,2]
[365293058,1749583838325,-460.0,0.00023269,4]
[365293059,1749583838335,-460.0,0.00023269,4]
[365293060,1749583838345,-460.0,0.00023269,4]
[365293062,1749583838354,-460.0,0.00023269,4]
[365293063,1749583838363,-460.0,0.00023269,4]
[365293064,1749583838373,-460.0,0.00023269,4]
[365293065,1749583838382,-871.53,0.00023269,4]
[365293066,1749583838392,-584.62,0.0002327,4]
[365293067,1749583838403,-1208.74,0.0002327,4]
[365293068,1749583838413,-460.0,0.0002327,4]
[365293069,1749583838422,-185.41738437,0.0002327,2]
[365293070,1749583838431,-229.6792923,0.00023272,2]
[365293071,1749583838440,-160.0,0.00023272,2]
[365293072,1749583838451,-867.36,0.00023287,4]
[365293073,1749583838460,-586.17,0.00023287,4]
[365293074,1749583838469,-565.4,0.00023287,4]
[365293075,1749583838478,-564.71,0.00023287,4]
[365293076,1749583838488,-609.78,0.00023287,4]
[365293077,1749583838498,-757.88,0.00023287,4]
[365293078,1749583838507,-219.96597335,0.00023304,2]
[365293079,1749583838516,-559.24350556,0.00023348,9]